Cogmind - Beta 11 X7 @@@ ROGUE MODE // 2021.09.03 @ 22:01:18 Player: kasaphescent Result: Destroyed by H-77 Assassin with Coil Gun Performance ------------- Evolutions (7) 3500 Regions Visited (23) 4600 Robots Destroyed (175) 875 Value Destroyed (7812) 7812 Prototype IDs (244) 4880 Alien Tech Used (2) 400 Bonus (5651) 5651 TOTAL SCORE: 27718 Bonus ------- High Alert Combat Kills 10 Follower Combat Kills 117 Aligned with FarCom 300 Met Data Miner 300 Used Data Conduit 3000 Met Warlord at Base 500 MAIN.C Attacked Warlord 500 Warlord Defense Kill 728 Pursued by Intercept 500 Friendly Fire -304 Cogmind --------- Core Integrity 0/1300 Matter 203/300 Energy 90/100 System Corruption 14% Temperature Cool (0) Movement Walking (105) Location -3/Research Parts ------- > --- POWER (1) -------- (None) > --- PROPULSION (5) --- Biometal Leg Enhanced Biometal Leg > --- UTILITY (11) ----- (None) > --- WEAPON (4) ------- (None) > --- INVENTORY (5) ---- Vortex Chain Reactor Enhanced Biometal Leg Peak State ------------ > --- POWER ------------ Light Antimatter Reactor > --- PROPULSION ------- Myomer Leg Advanced Myomer Leg Advanced Myomer Leg Advanced Myomer Leg Biometal Leg > --- UTILITY ---------- Advanced Power Amplifier Advanced Heat Sink High-capacity Storage Unit 0b10 Decoder Chip [Generic] Particle Charger Experimental Cloaking Device Improved Medium Armor Plating Thermal Shield System Mapper Quantum Router > --- WEAPON ----------- Variable Charge Gun Precision Phase Gun Vortex Cannon Coil Gun > --- INVENTORY -------- F-cell Engine Vortex Chain Reactor Biometal Leg Biometal Leg Biometal Leg Enhanced Biometal Leg Enhanced Biometal Leg High-capacity Matter Pod Advanced Signal Interpreter System Purifier Transdimensional Reconstructor Vortex Cannon Dirty Bomb Trap Dirty Bomb Trap Dirty Bomb Trap Dirty Bomb Trap Dirty Bomb Trap [Rating: 146] Favorites ----------- Power Antimatter Reactor Engine Heavy Deuterium Engine Reactor Antimatter Reactor Propulsion Carbon-fiber Leg Treads Armored Treads Leg Carbon-fiber Leg Utility Advanced Heat Sink Device Advanced Heat Sink Storage High-capacity Storage Unit Processor Advanced Melee Analysis Suite Hackware Quantum Router Protection Layered Medium Armor Plating Weapon Autogun Energy Gun Heavy Laser Energy Cannon Heavy Plasma Cannon Ballistic Gun Autogun Launcher Missile Launcher Special Weapon Enhanced Flamer Slashing Weapon Longsword +1 Piercing Weapon Spear Build | -11 -10 -10 -10 -9 -8 -8 -7 -7 -7 -7 -6 -6 -5 -5 -5 -5 -4 -4 -4 -4 -4 -3 -3 ------- Run | Scr Mat Min Exi Min Mat Sto Fac Low Low Dat Pro Fac Fac Upp Upp Zhi Pro Fac Upp Upp War Pro Res Slots Evolved 14 | . . . . . 4 . 2 . . . . 2 2 . . . . 2 . . . . 2 Power . | . . . . . . . . . . . . . . . . . . . . . . . . Propulsion 3 | . . . . . 2 . . . . . . . . . . . . 1 . . . . . Utility 9 | . . . . . . . 2 . . . . 2 2 . . . . 1 . . . . 2 Weapon 2 | . . . . . 2 . . . . . . . . . . . . . . . . . . Parts Attached 219 | 6 2 . 3 7 21 30 3 15 7 15 11 13 4 3 34 6 2 6 2 3 5 10 11 Power 14 | 1 . . . 1 1 3 . . . 1 . 1 . . 1 1 . 1 . 1 . 1 1 Engine 9 | 1 . . . 1 1 3 . . . . . 1 . . 1 . . . . . . . 1 Core . | . . . . . . . . . . . . . . . . . . . . . . . . Reactor 5 | . . . . . . . . . . 1 . . . . . 1 . 1 . 1 . 1 . Propulsion 59 | 2 . . . 5 9 12 1 4 . 3 4 . . . 9 . . 1 1 2 1 . 5 Treads 4 | . . . . . . . . 1 . 3 . . . . . . . . . . . . . Leg 55 | 2 . . . 5 9 12 1 3 . . 4 . . . 9 . . 1 1 2 1 . 5 Wheel . | . . . . . . . . . . . . . . . . . . . . . . . . Hover . | . . . . . . . . . . . . . . . . . . . . . . . . Flight . | . . . . . . . . . . . . . . . . . . . . . . . . Utility 60 | 1 . . 3 1 1 2 2 1 3 4 1 5 4 3 14 . . 4 1 . 4 5 1 Device 26 | . . . 1 1 1 2 . . 2 2 . 1 1 . 6 . . 2 1 . 3 2 1 Storage 6 | 1 . . 2 . . . . . . . . 1 . . 2 . . . . . . . . Processor 6 | . . . . . . . 1 . . . . 2 1 1 . . . . . . . 1 . Hackware 2 | . . . . . . . . . . . . . . . . . . 2 . . . . . Protection 20 | . . . . . . . 1 1 1 2 1 1 2 2 6 . . . . . 1 2 . Artifact . | . . . . . . . . . . . . . . . . . . . . . . . . Weapon 86 | 2 2 . . . 10 13 . 10 4 7 6 7 . . 10 5 2 . . . . 4 4 Energy Gun 22 | 2 . . . . 1 . . . . . . 3 . . 7 4 2 . . . . 1 2 Energy Cannon 9 | . . . . . . . . 1 2 3 1 . . . . . . . . . . 1 1 Ballistic Gun 27 | . 2 . . . 7 9 . 5 . 1 . . . . 1 . . . . . . 2 . Ballistic Cannon . | . . . . . . . . . . . . . . . . . . . . . . . . Launcher 13 | . . . . . . 3 . 3 2 1 3 . . . 1 . . . . . . . . Special Weapon 3 | . . . . . . . . . . . 2 . . . . . . . . . . . 1 Impact Weapon . | . . . . . . . . . . . . . . . . . . . . . . . . Slashing Weapon 9 | . . . . . 2 1 . 1 . 2 . 1 . . 1 1 . . . . . . . Piercing Weapon 3 | . . . . . . . . . . . . 3 . . . . . . . . . . . Special Melee Weapon . | . . . . . . . . . . . . . . . . . . . . . . . . Unidentified Prototypes 9 | . . . . . . 2 . . . . . . . . . 1 . 2 . . 2 1 1 Corrupted Parts 4 | . . . . . . . . . . 1 2 . . . 1 . . . . . . . . System Corruption 22 | . . . . . . . . . . 7 10 . . . 5 . . . . . . . . Parts Lost 90 | . . . . 1 3 6 . 9 . 11 3 3 . 2 16 . 4 . 1 2 . 7 22 Power 7 | . . . . 1 . 2 . . . 1 . 1 . . . . . . . . . . 2 Propulsion 28 | . . . . . . 1 . 4 . 3 1 . . . 9 . . . 1 2 . . 7 Utility 23 | . . . . . . . . 1 . 2 1 . . 2 5 . 2 . . . . 3 7 Weapon 32 | . . . . . 3 3 . 4 . 5 1 2 . . 2 . 2 . . . . 4 6 Highest Loss Streak 22 | . . . . 1 2 2 . 4 . 11 2 1 . 1 8 . 2 . 1 1 . 6 22 Average Slot Usage (%) 90 | . 84 85 85 88 98 98 100 92 96 85 74 92 98 98 87 71 89 96 99 99 97 88 79 Engine 4 | . 14 14 14 12 9 8 7 7 7 2 . . 5 5 4 2 . . . . . . . Reactor 2 | . . . . . . . . . . 4 7 5 . . . 2 5 5 5 5 5 5 3 Treads 2 | . . . . . . . . 1 7 18 22 . . . . . . . . . . . . Leg 24 | . 28 28 28 28 36 35 30 27 23 11 . 26 23 23 21 23 23 26 25 25 26 26 20 Device 12 | . . . . 4 9 9 7 7 7 7 15 13 14 3 13 23 20 24 30 31 27 16 18 Storage 8 | . 14 14 14 14 9 9 7 7 7 7 7 6 5 5 8 11 11 10 5 5 5 5 3 Processor 3 | . . . . . . . 7 7 7 6 . 12 12 19 6 . . . . . . 1 3 Hackware 2 | . . . . . . . . . . . . . . . . . . 8 10 10 10 10 7 Protection 3 | . . . . . . . 7 5 7 6 7 5 10 14 7 5 2 . . . 1 5 2 Energy Gun 5 | . 13 . . . 1 . . . . . . 3 . . 11 . 23 21 21 21 21 8 6 Energy Cannon 1 | . . . . . . . . 2 3 7 8 . . . . . . . . . . 3 3 Ballistic Gun 12 | . 14 28 28 28 33 35 30 22 23 6 . . . . 3 . . . . . . 4 3 Piercing Weapon 1 | . . . . . . . . . . . . 5 17 17 4 . . . . . . . . Naked Turns 24 | . . . . . . . . . . . . . . . 1 . . . . . . . 23 Heaviest Build 107 | 11 14 14 49 32 44 50 53 56 57 64 64 79 74 84 103 84 84 80 80 83 100 107 98 Greatest Support 146 | 20 20 20 20 20 43 66 69 69 50 60 112 112 112 112 112 60 60 90 105 133 143 143 146 Greatest Overweight (x) 2 | 1 . . 2 1 1 1 . 1 1 1 1 . . . 2 1 1 . . . . . 1 Average Overweight (x) . | . . . 1 1 . . . . . . . . . . . 1 1 . . . . . . Largest Inventory Capacity 20 | 8 8 8 20 15 15 15 15 15 15 15 15 20 20 20 20 20 20 20 20 20 20 20 20 Average Capacity 17 | 6 8 8 16 15 15 15 15 15 15 15 15 20 20 20 19 20 20 20 20 20 20 20 19 Most Carried 20 | 6 8 8 8 15 15 15 13 15 15 15 15 20 20 20 20 20 19 17 18 18 20 20 19 Average Carried 14 | 4 7 7 7 11 13 14 12 11 12 12 14 13 19 20 13 19 17 13 16 16 18 19 16 Final Capacity 20 | 8 8 8 15 15 15 15 15 15 15 15 15 20 20 20 20 20 20 20 20 20 20 20 5 Final Carried 20 | 6 8 8 8 15 15 14 13 11 14 15 11 20 20 20 17 17 17 15 17 17 20 19 3 Class Distribution -------------------- 29% | Scavenger-Mutant 16% | Scavenger-Tank 14% | Scavenger-Skirmisher 13% | Mutant 9% | Hacker-Gunner 6% | Hacker-Tank 3% | Hacker-Mutant 3% | Skirmisher Dominant Class ---------------- Mutant | -10/Materials Mutant | -10/Mines Mutant | -10/Exiles Mutant | -9/Mines Scavenger-Skirmisher | -8/Materials Scavenger-Skirmisher | -8/Storage Scavenger-Skirmisher | -7/Factory Scavenger-Tank | -7/Lower Caves Scavenger-Tank | -7/Lower Caves Scavenger-Mutant | -7/Data Miner Scavenger-Mutant | -6/Proximity Caves Scavenger-Mutant | -6/Factory Scavenger-Mutant | -5/Factory Scavenger-Mutant | -5/Upper Caves Scavenger-Tank | -5/Upper Caves Scavenger-Mutant | -5/Zhirov Scavenger-Tank | -4/Proximity Caves Hacker-Mutant | -4/Factory Hacker-Gunner | -4/Upper Caves Hacker-Gunner | -4/Upper Caves Hacker-Gunner | -4/Warlord Hacker-Tank | -3/Proximity Caves Hacker-Mutant | -3/Research Resources | -11 -10 -10 -10 -9 -8 -8 -7 -7 -7 -7 -6 -6 -5 -5 -5 -5 -4 -4 -4 -4 -4 -3 -3 ----------- Run | Scr Mat Min Exi Min Mat Sto Fac Low Low Dat Pro Fac Fac Upp Upp Zhi Pro Fac Upp Upp War Pro Res Matter Collected 5645 | 184 76 36 . 293 1224 1112 72 575 181 176 380 351 68 50 414 39 73 . 75 30 50 181 5 Remotely 80 | . . . . . . 80 . . . . . . . . . . . . . . . . . Salvage Created 9433 | . 44 21 . 356 1307 1576 72 347 272 446 303 609 539 159 1033 450 298 . 161 286 425 568 161 Parts 402 | . 7 2 . 14 72 99 3 27 13 22 11 16 25 8 33 3 4 . 3 6 10 16 8 Haulers Intercepted 4 | . . . . . 1 2 . . . . . 1 . . . . . . . . . . . Recyclers Shooed . | . . . . . . . . . . . . . . . . . . . . . . . . Parts Field Recycled . | . . . . . . . . . . . . . . . . . . . . . . . . Retrieved Matter . | . . . . . . . . . . . . . . . . . . . . . . . . Parts Self-Destructed 158 | . . . . . . . . 16 5 . 10 . . 9 30 3 20 . 2 3 48 12 . Prevented 32 | . . . . . . . . 8 8 . . . . . . . 4 . . . 12 . . Kills | -11 -10 -10 -10 -9 -8 -8 -7 -7 -7 -7 -6 -6 -5 -5 -5 -5 -4 -4 -4 -4 -4 -3 -3 ------- Run | Scr Mat Min Exi Min Mat Sto Fac Low Low Dat Pro Fac Fac Upp Upp Zhi Pro Fac Upp Upp War Pro Res Combat Hostiles Destroyed 141 | . 3 . . 6 21 20 . 10 6 4 9 7 6 1 17 . 6 . 2 3 5 10 5 Melee 25 | . . . . . . . . . . 1 . 7 6 1 10 . . . . . . . . Guns 79 | . 3 . . 6 21 19 . 2 2 1 . . . . 6 . 4 . . 3 3 6 3 Cannons 12 | . . . . . . . . 3 . 1 5 . . . . . . . . . . 1 2 AOE 13 | . . . . . . 1 . 5 3 . 4 . . . . . . . . . . . . Classes Destroyed 21 | . 1 1 . 3 7 4 . 1 . . 1 . . . . . 1 . . 1 1 . . Worker 6 | . . . . . 2 3 . . . . . 1 . . . . . . . . . . . Builder 3 | . . . . . 1 1 . . . . . . 1 . . . . . . . . . . Tunneler 3 | . . 1 . . 1 . . . . . . 1 . . . . . . . . . . . Hauler 4 | . . . . . 1 2 . . . . . 1 . . . . . . . . . . . Recycler 7 | . . . . 1 1 3 1 . . . . . 1 . . . . . . . . . . Minesweeper 3 | . . . . . . . . . . . . . . . . . 1 . 1 . . 1 . Mechanic 1 | . . . . . . 1 . . . . . . . . . . . . . . . . . Watcher 5 | . . . . . 1 1 . . . . . 1 1 . . . . . . . . . 1 Swarmer 28 | . 3 . . . . . . 8 3 . . . . . 2 . 3 . . . . 6 3 Grunt 56 | . . . . 5 14 10 . . 2 . 6 4 3 . 10 . . . . . 2 . . Brawler 4 | . . . . 1 . 2 . . 1 . . . . . . . . . . . . . . Duelist 4 | . . . . . 1 . . . . . . . . . 2 . . . . . 1 . . Protector 2 | . . . . . . 1 . . . . . . . . . . . . . . 1 . . Sentry 14 | . . . . . 5 4 . . . . 1 . 1 . 2 . . . . 1 . . . Specialist 2 | . . . . . . 2 . . . . . . . . . . . . . . . . . Hunter 7 | . . . . . 1 . . 1 . . . . . . . . 3 . . . . 2 . Programmer 13 | . . . . . . . . . . . 2 1 2 . 1 . . . 2 1 . 2 2 Heavy 1 | . . . . . . 1 . . . . . . . . . . . . . . . . . Behemoth 2 | . . . . . . . . 1 . . . . . 1 . . . . . . . . . Enhanced Grunt 4 | . . . . . . . . . . 4 . . . . . . . . . . . . . Tracker 1 | . . . . . . . . . . . . 1 . . . . . . . . . . . Combat Programmer 1 | . . . . . . . . . . . . 1 . . . . . . . . . . . Striker 1 | . . . . . . . . . . . . . . . . . . . . . 1 . . Decomposer 1 | . . . . . . . . . . . . . . . . . . . 1 . . . . Packrat 1 | . . . . . . . . . . . . . . 1 . . . . . . . . . Thug 1 | . . . . . . . . . . . . . . . . . . . . . 1 . . Mutant 1 | . . . . . . . . . . . . . . . . . . . . 1 . . . Best Kill Streak 7 | . 3 1 . 3 5 7 1 4 3 1 4 3 4 1 5 . 3 . 2 2 4 3 5 Combat Bots Only 7 | . 3 . . 3 4 7 . 4 3 1 4 3 3 1 5 . 3 . 2 2 4 3 4 Max Kills in Single Turn 3 | . 1 1 . 1 2 3 1 3 2 1 2 1 1 1 1 . 1 . 1 1 2 1 1 Gunslinging 1 | . . . . . . 1 . . . . . . . . . . . . . . . . . Exploded 3 | . . . . . . 1 . 3 2 . 2 . . . . . . . . . . . . Melee 1 | . . . . . . . . . . 1 . 1 1 1 1 . . . . . . . . Uniques/NPCs Destroyed 1 | . . . . . . . . . . 1 . . . . . . . . . . . . . Data Miner (-7/Data Miner) Combat | -11 -10 -10 -10 -9 -8 -8 -7 -7 -7 -7 -6 -6 -5 -5 -5 -5 -4 -4 -4 -4 -4 -3 -3 -------- Run | Scr Mat Min Exi Min Mat Sto Fac Low Low Dat Pro Fac Fac Upp Upp Zhi Pro Fac Upp Upp War Pro Res Damage Taken 17588 | . 70 . . 247 766 1224 . 1225 328 1769 919 523 323 609 3060 . 838 . 101 86 236 1455 3809 Core 3221 | . 15 . . 46 104 101 . 224 13 276 114 131 109 118 466 . 130 . . . . 125 1249 Absorbed by Shields . | . . . . . . . . . . . . . . . . . . . . . . . . Core Remaining (%) 62 | 100 . . . 75 . 62 . . . . 10 84 . . . . 17 . . . . 89 . Volleys Fired 401 | . 3 2 . 27 71 58 1 33 9 32 32 . . . 15 . 20 6 7 8 12 30 35 Largest 4 | . 2 2 . 2 4 4 4 4 3 3 2 . . . 4 . 4 4 4 4 4 4 4 Hottest 444 | . 90 46 . 46 143 104 104 146 84 183 180 . . . 282 . 294 294 294 444 294 294 249 Shots Fired 1152 | . 6 4 . 54 266 213 4 76 15 54 43 . . . 60 . 75 9 25 31 45 98 74 Gun 1033 | . 6 4 . 54 266 211 4 61 9 15 . . . . 60 . 75 9 25 31 45 93 65 Cannon 75 | . . . . . . . . 6 . 33 22 . . . . . . . . . . 5 9 Launcher 42 | . . . . . . 2 . 9 6 6 19 . . . . . . . . . . . . Special 2 | . . . . . . . . . . . 2 . . . . . . . . . . . . Kinetic 667 | . . 4 . 54 251 211 4 61 9 15 . . . . 12 . . . . . . 24 22 Thermal 429 | . 6 . . . 15 . . 6 . 33 24 . . . 48 . 75 9 25 31 45 69 43 Explosive 21 | . . . . . . . . 2 . . 19 . . . . . . . . . . . . Electromagnetic 21 | . . . . . . 2 . 7 6 6 . . . . . . . . . . . . . Entropic 14 | . . . . . . . . . . . . . . . . . . . . . . 5 9 Robot Hit Streak 20 | . 3 3 . 7 20 9 1 13 10 8 9 . . . 16 . 8 . 13 18 14 9 19 Robot Miss Streak 8 | . 1 1 . 2 8 5 1 5 2 3 2 . . . 2 . 4 . 1 1 2 3 1 Penetration Max 1 | . . . . . 1 1 . . . . . . . . . . . . . . . . 1 Secondary Targets 16 | . . . . . 3 3 . . . . . . . . . . 3 . 1 . 1 4 1 Max Gunslinging Chain 1 | . . . . . 1 1 . . . . . . . . . . 1 . 1 . 1 1 1 Shots Hit Robots 841 | . 4 3 . 34 138 131 1 43 10 44 23 34 33 12 92 7 42 . 21 23 36 64 46 Core Hits 347 | . 3 1 . 11 56 60 1 19 9 20 29 14 12 4 34 3 13 . 4 9 14 21 10 Critical Kills . | . . . . . . . . . . . . . . . . . . . . . . . . Critical Parts Destroyed 4 | . . . . . 1 . . . . . . . . . 1 . . . . . . . 2 Critical Strikes 32 | . . . . . 1 . . . . 1 . 2 3 1 3 . 5 . 2 . 5 4 5 Burn 18 | . . . . . . . . . . . . . . . 1 . 5 . 2 . 5 4 1 Destroy 4 | . . . . . 1 . . . . . . . . . 1 . . . . . . . 2 Sever 7 | . . . . . . . . . . 1 . 2 3 1 . . . . . . . . . Puncture 1 | . . . . . . . . . . . . . . . 1 . . . . . . . . Sunder 2 | . . . . . . . . . . . . . . . . . . . . . . . 2 Melee Attacks 175 | . . . . . 2 2 . 1 . 12 . 48 40 12 51 7 . . . . . . . Impact . | . . . . . . . . . . . . . . . . . . . . . . . . Slashing 138 | . . . . . 2 2 . 1 . 12 . 40 28 8 38 7 . . . . . . . Piercing 37 | . . . . . . . . . . . . 8 12 4 13 . . . . . . . . Sneak Attacks 7 | . . . . . . . . . . 1 . 3 2 1 . . . . . . . . . Combat Hostiles . | . . . . . . . . . . . . . . . . . . . . . . . . Follow-up Attacks 22 | . . . . . . . . . . . . 1 7 4 10 . . . . . . . . Damage Inflicted 26024 | . 44 44 . 518 2248 2811 18 1344 467 1456 1489 2075 1784 671 3064 1122 959 . 601 663 868 1773 2005 Guns 13438 | . 44 44 . 518 2248 2488 18 616 113 206 . . . . 942 . 959 . 601 663 868 1637 1473 Cannons 1938 | . . . . . . . . 128 . 554 605 . . . . . . . . . . 136 515 Explosions 2120 | . . . . . . 288 . 438 354 180 860 . . . . . . . . . . . . Melee 8452 | . . . . . . . . 162 . 516 . 2075 1784 671 2122 1122 . . . . . . . Ramming 52 | . . . . . . 35 . . . . . . . . . . . . . . . . 17 Kinetic 7151 | . . 44 . 518 2039 2488 18 616 113 206 . . . . 180 . . . . . . 453 476 Thermal 7671 | . 44 . . . 209 73 . 128 . 554 629 . . . 762 . 959 . 601 663 868 1184 997 Explosive 1104 | . . . . . . . . 244 . . 860 . . . . . . . . . . . . Electromagnetic 943 | . . . . . . 215 . 194 354 180 . . . . . . . . . . . . . Impact . | . . . . . . . . . . . . . . . . . . . . . . . . Slashing 7725 | . . . . . . . . 162 . 516 . 2045 1545 529 1806 1122 . . . . . . . Piercing 727 | . . . . . . . . . . . . 30 239 142 316 . . . . . . . . Entropic 651 | . . . . . . . . . . . . . . . . . . . . . . 136 515 Highest Corruption 17 | . . . . 2 . 1 . . . 7 17 5 3 3 11 11 11 . . . . 4 14 Average Corruption 6 | . . . . 2 . 1 . . . 7 7 3 1 3 9 11 11 . . . . 3 7 Corruption Purged . | . . . . . . . . . . . . . . . . . . . . . . . . Effects 149 | . . . . 5 . 2 . . . 10 33 2 3 8 35 14 20 . . . . 12 5 Message Errors 43 | . . . . 2 . 2 . . . 2 8 2 1 2 10 4 7 . . . . 2 1 Matter Fused 28 | . . . . . . . . . . 4 6 . 1 3 5 1 3 . . . . 5 . Heat Flow Errors 20 | . . . . . . . . . . . 4 . . 1 7 2 3 . . . . 1 2 Energy Discharges 26 | . . . . 2 . . . . . 3 8 . 1 1 3 2 3 . . . . 3 . Parts Rejected 1 | . . . . . . . . . . . . . . . . . . . . . . . 1 Data Loss (minor) 14 | . . . . 1 . . . . . . 4 . . 1 5 2 1 . . . . . . Data Loss (major) 4 | . . . . . . . . . . . 2 . . . 1 1 . . . . . . . Misfires 3 | . . . . . . . . . . 1 1 . . . 1 . . . . . . . . Alerts 4 | . . . . . . . . . . . . . . . 2 2 . . . . . . . Misdirections 1 | . . . . . . . . . . . . . . . . . . . . . . . 1 Weapon Failures 5 | . . . . . . . . . . . . . . . 1 . 3 . . . . 1 . Overload Shots 23 | . . . . . . . . . . . . . . . . . . 5 1 3 . 1 13 Overflow Damage 1596 | . . . . . . 7 . 143 12 9 90 310 174 . 66 540 . . . . . 38 207 Projectiles 335 | . . . . . . . . . . . 90 . . . . . . . . . . 38 207 Explosions 29 | . . . . . . 7 . 10 12 . . . . . . . . . . . . . . Melee 1232 | . . . . . . . . 133 . 9 . 310 174 . 66 540 . . . . . . . Knockbacks . | . . . . . . . . . . . . . . . . . . . . . . . . Impact . | . . . . . . . . . . . . . . . . . . . . . . . . Kinetic . | . . . . . . . . . . . . . . . . . . . . . . . . Secondary . | . . . . . . . . . . . . . . . . . . . . . . . . Self-Inflicted Damage 40 | . . . . . . 21 . . 5 8 . . . . . . . . . . . . 6 Shots 4 | . . . . . . 1 . . 2 1 . . . . . . . . . . . . . Rammed 3 | . . . . . . . . . . . . . . . . . . . . . . . 3 Targets Rammed 6 | . . . . . . 2 . . . . . . . . . . . . . . . . 4 Kicked 3 | . . . . . . 2 . . . . . . . . . . . . . . . . 1 Crushed . | . . . . . . . . . . . . . . . . . . . . . . . . Highest Temperature 360 | . 60 6 . 28 301 74 . 120 . 300 178 . . 90 360 124 193 24 22 150 168 280 360 Average Temperature 75 | . 27 4 . 9 54 28 . 43 . 104 100 . . 47 135 75 22 13 16 81 57 78 101 Received Heat Transfer 2629 | . . . . 90 333 441 . 120 36 228 192 36 63 96 801 . . . . 18 9 9 157 Effects 8 | . . . . . 3 . . . . 1 . . . . 2 . . . . . . . 2 Energy Bleed 4 | . . . . . 1 . . . . 1 . . . . 2 . . . . . . . . Interference 4 | . . . . . 2 . . . . . . . . . . . . . . . . . 2 Siege Activations . | . . . . . . . . . . . . . . . . . . . . . . . . Robots Corrupted 2 | . . . . . . . . . 1 1 . . . . . . . . . . . . . Combat Hostiles 2 | . . . . . . . . . 1 1 . . . . . . . . . . . . . Parts Fried 6 | . . . . . . . . . 1 2 . . . . . . 2 . . . . . 1 Impact Corruptions . | . . . . . . . . . . . . . . . . . . . . . . . . Robots Melted 11 | . . . . . . . . . . . . . . . 1 . 2 . 3 . 2 3 . Combat Hostiles 10 | . . . . . . . . . . . . . . . 1 . 2 . 2 . 2 3 . Parts Melted 40 | . 1 . . . 1 . . . . . . . . . 1 . 8 . 8 3 10 8 . Heat Transferred 14192 | . 112 . . . 407 200 . 200 . 1009 760 . . . 1469 . 2269 . 1120 1046 2024 2540 1036 Parts Sabotaged . | . . . . . . . . . . . . . . . . . . . . . . . . Parts Stolen . | . . . . . . . . . . . . . . . . . . . . . . . . Parts Stripped . | . . . . . . . . . . . . . . . . . . . . . . . . Power Chain Reactions 1 | . . . . . . 1 . . . . . . . . . . . . . . . . . Missiles Intercepted . | . . . . . . . . . . . . . . . . . . . . . . . . Alert | -11 -10 -10 -10 -9 -8 -8 -7 -7 -7 -7 -6 -6 -5 -5 -5 -5 -4 -4 -4 -4 -4 -3 -3 ------- Run | Scr Mat Min Exi Min Mat Sto Fac Low Low Dat Pro Fac Fac Upp Upp Zhi Pro Fac Upp Upp War Pro Res Peak Influence 497 | . 100 44 . 116 327 297 132 . . . . 193 205 . . . . 455 . . . . 497 Initial 98 | . . 39 . . 21 81 98 . . . . 25 65 . . . . 31 . . . . 57 Average 125 | . 59 43 . 66 187 147 118 . . . . 87 103 . . . . 221 . . . . 90 Maximum Alert Level 2 | . . . . . 1 1 . . . . . . 1 . . . . 2 . . . . 2 Low Security (%) 76 | 100 100 100 . 100 40 65 100 . . . . 100 83 . . . . 55 . . . . 85 Level 1 20 | . . . . . 59 34 . . . . . . 16 . . . . . . . . . 10 Level 2 3 | . . . . . . . . . . . . . . . . . . 44 . . . . 3 Level 3 . | . . . . . . . . . . . . . . . . . . . . . . . . Level 4 . | . . . . . . . . . . . . . . . . . . . . . . . . Level 5 . | . . . . . . . . . . . . . . . . . . . . . . . . High Security . | . . . . . . . . . . . . . . . . . . . . . . . . Max Security . | . . . . . . . . . . . . . . . . . . . . . . . . Squads Dispatched 23 | . 1 . . . 3 5 . . . . . 4 2 . 1 . . 2 . . . . 5 Investigation 3 | . . . . . 1 . . . . . . 1 1 . . . . . . . . . . Extermination 4 | . . . . . . . . . . . . 1 1 . . . . 1 . . . . 1 Reinforcement 10 | . 1 . . . 2 3 . . . . . . . . . . . . . . . . 4 Assault 4 | . . . . . . 2 . . . . . . . . 1 . . 1 . . . . . Garrison . | . . . . . . . . . . . . . . . . . . . . . . . . Intercept 2 | . . . . . . . . . . . . 2 . . . . . . . . . . . Construction Impeded 1 | . . . . . . . . . . . . . . . . . . . . . . . 1 Haulers Reinforced 1 | . . . . . . . . . . . . . . . . . . . . . . . 1 Active Scanning Responses . | . . . . . . . . . . . . . . . . . . . . . . . . Cargo Convoy Interrupts 1 | . . . . . . . . . . . . . . . . . . . . . . . 1 Stealth | -11 -10 -10 -10 -9 -8 -8 -7 -7 -7 -7 -6 -6 -5 -5 -5 -5 -4 -4 -4 -4 -4 -3 -3 --------- Run | Scr Mat Min Exi Min Mat Sto Fac Low Low Dat Pro Fac Fac Upp Upp Zhi Pro Fac Upp Upp War Pro Res Distress Signals 12 | . . . . . 5 3 . . . . . 1 . . . . . . . . 1 . 2 Communications Jammed . | . . . . . . . . . . . . . . . . . . . . . . . . Distress Signals . | . . . . . . . . . . . . . . . . . . . . . . . . Times Spotted 282 | . 8 1 . 7 33 30 1 11 9 4 11 17 8 1 40 . 9 . 3 3 32 13 41 Peak Tracking Total 19 | . 3 . . 3 6 6 1 4 3 2 4 6 2 1 17 . 5 2 3 1 11 3 19 Tactical Retreats 33 | . 1 . . 1 2 2 . 1 . . 1 3 . . 19 . . . . . . 2 1 Traps | -11 -10 -10 -10 -9 -8 -8 -7 -7 -7 -7 -6 -6 -5 -5 -5 -5 -4 -4 -4 -4 -4 -3 -3 ------- Run | Scr Mat Min Exi Min Mat Sto Fac Low Low Dat Pro Fac Fac Upp Upp Zhi Pro Fac Upp Upp War Pro Res Traps Triggered 6 | . . . . . 1 1 . . . . . . 2 . . . . . . . . . 2 Indirectly . | . . . . . . . . . . . . . . . . . . . . . . . . Trap Hack Attempts . | . . . . . . . . . . . . . . . . . . . . . . . . Triggered . | . . . . . . . . . . . . . . . . . . . . . . . . Disarmed 3 | . . . . . . 3 . . . . . . . . . . . . . . . . . Reprogrammed . | . . . . . . . . . . . . . . . . . . . . . . . . Reused 12 | . . . . 2 3 . . . . . . . . . . . 5 . . . . . 2 Traps Extracted . | . . . . . . . . . . . . . . . . . . . . . . . . Installed 18 | . . . . 2 3 . . . . . . . . . . . 5 . 1 . . . 7 Triggered 32 | . . . . 2 3 . . . 2 . . . . . . . 6 . . . 16 1 2 Machines | -11 -10 -10 -10 -9 -8 -8 -7 -7 -7 -7 -6 -6 -5 -5 -5 -5 -4 -4 -4 -4 -4 -3 -3 ---------- Run | Scr Mat Min Exi Min Mat Sto Fac Low Low Dat Pro Fac Fac Upp Upp Zhi Pro Fac Upp Upp War Pro Res Machines Disabled 3 | . . . . . . 2 . . . . . . . . . . . . . . . . 1 Max in Single Turn 1 | . . . . . . 1 . . . . . . . . . . . . . . . . 1 Garrison Access 1 | . . . . . . . 1 . . . . . . . . . . . . . . . . Machines Sabotaged . | . . . . . . . . . . . . . . . . . . . . . . . . Garrisons Compromised . | . . . . . . . . . . . . . . . . . . . . . . . . Overloaded Fab Kills . | . . . . . . . . . . . . . . . . . . . . . . . . Fab Network Shutdowns 1 | . . . . . . . . . . . . . . . . . . 1 . . . . . Hacking | -11 -10 -10 -10 -9 -8 -8 -7 -7 -7 -7 -6 -6 -5 -5 -5 -5 -4 -4 -4 -4 -4 -3 -3 --------- Run | Scr Mat Min Exi Min Mat Sto Fac Low Low Dat Pro Fac Fac Upp Upp Zhi Pro Fac Upp Upp War Pro Res Machines Accessed 33 | . . . 1 1 2 3 2 . . 4 . 3 3 . . 4 . 4 1 . 1 . 4 Terminals 15 | . . . . 1 2 3 1 . . . . 1 1 . . . . 3 . . . . 3 Fabricators 2 | . . . . . . . . . . . . . . . . . . 1 . . . . 1 Repair Stations 3 | . . . . . . . . . . . . 2 1 . . . . . . . . . . Recycling Units . | . . . . . . . . . . . . . . . . . . . . . . . . Scanalyzers . | . . . . . . . . . . . . . . . . . . . . . . . . Garrison Access 2 | . . . . . . . 1 . . . . . 1 . . . . . . . . . . Total Hacks 110 | . . . 1 1 6 7 5 . . 23 . 9 6 . . 13 . 26 1 . 1 . 11 Successful 73 | . . . 1 1 2 3 3 . . 23 . 5 2 . . 13 . 14 1 . 1 . 4 Failed 37 | . . . . . 4 4 2 . . . . 4 4 . . . . 12 . . . . 7 Catastrophic 7 | . . . . . 1 1 . . . . . 2 1 . . . . . . . . . 2 Database Lockouts . | . . . . . . . . . . . . . . . . . . . . . . . . Manual 36 | . . . 1 1 5 5 2 . . . . 1 3 . . . . 10 . . 1 . 7 Terminals 50 | . . . . 1 6 7 3 . . . . 3 3 . . . . 20 . . . . 7 Fabricators 10 | . . . . . . . . . . . . . . . . . . 6 . . . . 4 Repair Stations 8 | . . . . . . . . . . . . 6 2 . . . . . . . . . . Recycling Units . | . . . . . . . . . . . . . . . . . . . . . . . . Scanalyzers . | . . . . . . . . . . . . . . . . . . . . . . . . Garrison Access 3 | . . . . . . . 2 . . . . . 1 . . . . . . . . . . Terminal Hacks 54 | . . . 1 1 2 3 1 . . 23 . 1 . . . 13 . 6 1 . 1 . 1 Record 19 | . . . . . . . . . . 11 . . . . . 5 . 3 . . . . . Part Schematic 10 | . . . . . 1 . . . . 4 . . . . . 4 . 1 . . . . . Robot Schematic 5 | . . . . . . . . . . 5 . . . . . . . . . . . . . Prototype ID Bank 7 | . . . . . . . . . . 3 . . . . . 4 . . . . . . . Open Door 3 | . . . . . . 1 . . . . . . . . . . . . 1 . 1 . . Alert Level 1 | . . . . . . . 1 . . . . . . . . . . . . . . . . Unreport Threat 3 | . . . . . . 1 . . . . . 1 . . . . . . . . . . 1 Disarm Traps 1 | . . . . . . 1 . . . . . . . . . . . . . . . . . Hauler Manifests 2 | . . . . . 1 . . . . . . . . . . . . 1 . . . . . Zone Layout 2 | . . . . 1 . . . . . . . . . . . . . 1 . . . . . EX-Prototype ID Bank 1 | . . . 1 . . . . . . . . . . . . . . . . . . . . Fabricator Hacks 5 | . . . . . . . . . . . . . . . . . . 3 . . . . 2 Load Schematic 2 | . . . . . . . . . . . . . . . . . . 1 . . . . 1 Build 3 | . . . . . . . . . . . . . . . . . . 2 . . . . 1 Repair Station Hacks 4 | . . . . . . . . . . . . 3 1 . . . . . . . . . . Scan Component 3 | . . . . . . . . . . . . 2 1 . . . . . . . . . . Repair 1 | . . . . . . . . . . . . 1 . . . . . . . . . . . Recycling Unit Hacks . | . . . . . . . . . . . . . . . . . . . . . . . . Scanalyzer . | . . . . . . . . . . . . . . . . . . . . . . . . Garrison Access Hacks 1 | . . . . . . . 1 . . . . . . . . . . . . . . . . Seal Access 1 | . . . . . . . 1 . . . . . . . . . . . . . . . . Unauthorized Hacks 9 | . . . . . . . 1 . . . . 1 1 . . . . 5 . . . . 1 Terminals 7 | . . . . . . . 1 . . . . 1 1 . . . . 3 . . . . 1 Botnet 6 | . . . . . . . 1 . . . . 1 1 . . . . 2 . . . . 1 Operators 1 | . . . . . . . . . . . . . . . . . . 1 . . . . . Fabricators 2 | . . . . . . . . . . . . . . . . . . 2 . . . . . Prioritize 1 | . . . . . . . . . . . . . . . . . . 1 . . . . . Haulers 1 | . . . . . . . . . . . . . . . . . . 1 . . . . . Repair Stations . | . . . . . . . . . . . . . . . . . . . . . . . . Recycling Units . | . . . . . . . . . . . . . . . . . . . . . . . . Scanalyzers . | . . . . . . . . . . . . . . . . . . . . . . . . Garrison Access . | . . . . . . . . . . . . . . . . . . . . . . . . Data Cores Recovered . | . . . . . . . . . . . . . . . . . . . . . . . . Used . | . . . . . . . . . . . . . . . . . . . . . . . . Hacking Detections 19 | . . . . . 2 3 2 . . . . 2 3 . . . . 3 . . . . 4 Full Trace Events 1 | . . . . . . . . . . . . 1 . . . . . . . . . . . Feedback Events . | . . . . . . . . . . . . . . . . . . . . . . . . Feedback Blocked . | . . . . . . . . . . . . . . . . . . . . . . . . Robot Schematics Acquired 5 | . . . . . . . . . . 5 . . . . . . . . . . . . . Robots Built . | . . . . . . . . . . . . . . . . . . . . . . . . Matter . | . . . . . . . . . . . . . . . . . . . . . . . . Time . | . . . . . . . . . . . . . . . . . . . . . . . . Total Robot Build Rating . | . . . . . . . . . . . . . . . . . . . . . . . . Part Schematics Acquired 10 | . . . . . 1 . . . . 4 . . . . . 4 . 1 . . . . . Parts Built 4 | . . . . . . . . . . . . . . . . . . 2 . . . . 2 Matter 512 | . . . . . . . . . . . . . . . . . . 256 . . . . 256 Time 192 | . . . . . . . . . . . . . . . . . . 128 . . . . 64 Total Part Build Rating 32 | . . . . . . . . . . . . . . . . . . 16 . . . . 16 Parts Repaired 1 | . . . . . . . . . . . . 1 . . . . . . . . . . . Time 50 | . . . . . . . . . . . . 50 . . . . . . . . . . . Parts Recycled . | . . . . . . . . . . . . . . . . . . . . . . . . Recycled Matter . | . . . . . . . . . . . . . . . . . . . . . . . . Retrieved Matter . | . . . . . . . . . . . . . . . . . . . . . . . . Retrieved Components . | . . . . . . . . . . . . . . . . . . . . . . . . Parts Scanalyzed . | . . . . . . . . . . . . . . . . . . . . . . . . Part Schematics Acquired . | . . . . . . . . . . . . . . . . . . . . . . . . Parts Damaged . | . . . . . . . . . . . . . . . . . . . . . . . . Bothacking | -11 -10 -10 -10 -9 -8 -8 -7 -7 -7 -7 -6 -6 -5 -5 -5 -5 -4 -4 -4 -4 -4 -3 -3 ------------ Run | Scr Mat Min Exi Min Mat Sto Fac Low Low Dat Pro Fac Fac Upp Upp Zhi Pro Fac Upp Upp War Pro Res Used RIF Installer . | . . . . . . . . . . . . . . . . . . . . . . . . Robots Hacked . | . . . . . . . . . . . . . . . . . . . . . . . . Non-combat . | . . . . . . . . . . . . . . . . . . . . . . . . Combat . | . . . . . . . . . . . . . . . . . . . . . . . . Robot Hacks Applied . | . . . . . . . . . . . . . . . . . . . . . . . . Relay Couplers Released . | . . . . . . . . . . . . . . . . . . . . . . . . Robots Rewired 3 | . . . . . . . . . . . 1 . . . 2 . . . . . . . . Allies Hacked . | . . . . . . . . . . . . . . . . . . . . . . . . Hacks Repelled . | . . . . . . . . . . . . . . . . . . . . . . . . Allies | -11 -10 -10 -10 -9 -8 -8 -7 -7 -7 -7 -6 -6 -5 -5 -5 -5 -4 -4 -4 -4 -4 -3 -3 -------- Run | Scr Mat Min Exi Min Mat Sto Fac Low Low Dat Pro Fac Fac Upp Upp Zhi Pro Fac Upp Upp War Pro Res Total Allies 5 | . . . . . . 2 . . . . 1 . . . 2 . . . . . . . . Largest Group 2 | . . . . . . 2 . . . . 1 1 . . 2 2 2 . . . . . . Highest-Rated Group 62 | . . . . . . 62 . . . . 20 20 . . 60 60 60 . . . . . . Highest-Rated Ally 31 | . . . . . . 31 . . . . 20 20 . . 30 30 30 . . . . . . Total Orders . | . . . . . . . . . . . . . . . . . . . . . . . . Ally Attacks 28 | . . . . . . 10 . . . . 1 . . . 3 . 14 . . . . . . Total Damage 529 | . . . . . . 127 . . . . 57 . . . 93 . 252 . . . . . . Kills 4 | . . . . . . . . . . . . . . . 1 . 3 . . . . . . Allies Corrupted . | . . . . . . . . . . . . . . . . . . . . . . . . Allies Melted . | . . . . . . . . . . . . . . . . . . . . . . . . Intel | -11 -10 -10 -10 -9 -8 -8 -7 -7 -7 -7 -6 -6 -5 -5 -5 -5 -4 -4 -4 -4 -4 -3 -3 ------- Run | Scr Mat Min Exi Min Mat Sto Fac Low Low Dat Pro Fac Fac Upp Upp Zhi Pro Fac Upp Upp War Pro Res Robot Analysis Total 126 | . . . . . . . . . . 126 . . . . . . . . . . . . . Derelict Logs Recovered 13 | . . . . 1 . . . 3 2 . 1 . . . 2 . 1 . 2 1 . . . Drone Launches . | . . . . . . . . . . . . . . . . . . . . . . . . Drone Recoveries . | . . . . . . . . . . . . . . . . . . . . . . . . Decoded 0b10 Intel 12 | . . . . . . . . . . . . . . . . . . . . . . . 12 Traps 3 | . . . . . . . . . . . . . . . . . . . . . . . 3 Emergency Access 3 | . . . . . . . . . . . . . . . . . . . . . . . 3 Items 6 | . . . . . . . . . . . . . . . . . . . . . . . 6 Exploration | -11 -10 -10 -10 -9 -8 -8 -7 -7 -7 -7 -6 -6 -5 -5 -5 -5 -4 -4 -4 -4 -4 -3 -3 ------------- Run | Scr Mat Min Exi Min Mat Sto Fac Low Low Dat Pro Fac Fac Upp Upp Zhi Pro Fac Upp Upp War Pro Res Turns Passed 14792 | 52 192 109 936 665 1206 1025 218 981 607 608 1127 994 475 401 1169 369 474 367 339 606 661 740 471 Spaces Moved 8046 | 34 132 81 427 285 529 368 166 588 366 276 490 637 297 284 539 169 198 241 247 452 428 524 288 Core 49 | 7 . . . . . . . . . . . . . . 2 . . . . . . . 40 Treads 653 | . . . . . . . . . . 166 487 . . . . . . . . . . . . Legs 7344 | 27 132 81 427 285 529 368 166 588 366 110 3 637 297 284 537 169 198 241 247 452 428 524 248 Wheels . | . . . . . . . . . . . . . . . . . . . . . . . . Hover . | . . . . . . . . . . . . . . . . . . . . . . . . Flight . | . . . . . . . . . . . . . . . . . . . . . . . . Fastest Speed 50 | 50 120 120 120 200 120 120 125 123 123 123 120 120 120 120 50 200 200 120 120 118 118 118 50 Average Speed 147 | 110 120 120 217 200 130 156 125 142 156 169 207 120 120 120 171 200 200 120 120 118 118 118 108 Slowest Speed 280 | 120 120 120 280 200 200 200 127 206 203 270 270 120 120 120 280 200 200 120 120 120 118 118 180 Overloaded Moves . | . . . . . . . . . . . . . . . . . . . . . . . . Propulsion Burnouts . | . . . . . . . . . . . . . . . . . . . . . . . . Robots Hopped . | . . . . . . . . . . . . . . . . . . . . . . . . Cave-ins Triggered . | . . . . . . . . . . . . . . . . . . . . . . . . Teleports 1 | . . . . . . . . . . . . . . . . . . . . . . . 1 Exploration Rate (%) 42 | 3 35 29 78 55 37 47 4 65 62 82 57 15 9 46 53 61 35 8 39 68 60 60 10 Regions Visited 23 Branch Regions 16 Pre-discovered Areas 31 | . . . . . . . . 1 1 25 . . . . 1 3 . . . . . . . Known Exits Taken 4 | . . . . . . . . . . . . 1 1 1 . . . . . . . 1 . Unknown Exits Taken 19 | 1 1 1 1 1 1 1 1 1 1 1 1 . . . 1 1 1 1 1 1 1 . . Scrap Searched 23 | . . 1 . 1 . . . 3 3 . 2 . . 4 5 . 1 . . 2 . 1 . Spaces Dug 116 | . . . . . 2 2 . . . . 76 13 2 . . . . 6 . . . 1 14 Terrain Destroyed 310 | . . . . . 3 11 1 20 . 4 213 13 2 . 3 . 3 6 2 . . 10 19 Melee 19 | . . . . . 2 2 . . . . . 13 2 . . . . . . . . . . Projectile 64 | . . . . . 1 5 1 2 . 4 8 . . . 3 . 3 6 2 . . 10 19 AOE 227 | . . . . . . 4 . 18 . . 205 . . . . . . . . . . . . Terrain Rammed . | . . . . . . . . . . . . . . . . . . . . . . . . Walls Destroyed . | . . . . . . . . . . . . . . . . . . . . . . . . Machines Disabled . | . . . . . . . . . . . . . . . . . . . . . . . . Actions | -11 -10 -10 -10 -9 -8 -8 -7 -7 -7 -7 -6 -6 -5 -5 -5 -5 -4 -4 -4 -4 -4 -3 -3 --------- Run | Scr Mat Min Exi Min Mat Sto Fac Low Low Dat Pro Fac Fac Upp Upp Zhi Pro Fac Upp Upp War Pro Res Total 10123 | 45 161 90 436 338 918 699 173 666 386 359 555 832 397 334 697 199 228 311 274 501 558 577 389 Wait 1008 | . 14 6 . 6 265 212 2 23 . 10 7 114 61 37 23 . . 53 13 36 94 3 29 Move 8023 | 33 131 80 426 284 528 367 165 587 365 275 489 636 296 283 538 168 197 240 246 451 427 523 288 Hop . | . . . . . . . . . . . . . . . . . . . . . . . . Pick Up 124 | 6 5 1 1 8 11 8 1 3 2 10 3 17 4 1 9 5 3 3 3 2 8 7 3 Fast Attach 76 | 6 2 . 2 1 3 7 . 4 1 5 1 2 2 3 21 2 . 2 1 . 4 3 4 Attach 83 | . . . 1 1 6 6 2 7 1 8 6 7 1 . 11 5 2 3 1 2 . 5 8 Detach 32 | . 1 . 3 . 2 2 . 3 2 2 3 1 . . 6 6 . . 1 . . . . Swap 62 | . . . . 5 12 17 1 4 5 2 4 4 1 . 2 . . 1 . 1 1 2 . Drop 108 | . 5 1 3 4 15 18 1 1 1 3 5 4 4 2 2 6 1 3 1 1 12 4 11 Fire 401 | . 3 2 . 27 71 58 1 33 9 32 32 . . . 15 . 20 6 7 8 12 30 35 Melee 145 | . . . . . 2 2 . 1 . 12 . 47 28 8 38 7 . . . . . . . Ram 3 | . . . . . . . . . . . . . . . . . . . . . . . 3 Kick 3 | . . . . . . 2 . . . . . . . . . . . . . . . . 1 Crush . | . . . . . . . . . . . . . . . . . . . . . . . . Escape Stasis . | . . . . . . . . . . . . . . . . . . . . . . . . Rewire 37 | . . . . . . . . . . . 5 . . . 32 . . . . . . . . Trap 18 | . . . . 2 3 . . . . . . . . . . . 5 . 1 . . . 7 Miscellaneous . | . . . . . . . . . . . . . . . . . . . . . . . . Route ------- -11/Scrapyard -10/Materials -10/Mines -10/Exiles -9/Mines -8/Materials -8/Storage -7/Factory -7/Lower Caves -7/Lower Caves (discovered 2 exits: *Fac / *Dat) -7/Data Miner -6/Proximity Caves -6/Factory -5/Factory -5/Upper Caves -5/Upper Caves -5/Zhirov -4/Proximity Caves -4/Factory (discovered 2 exits: Res / *Upp) -4/Upper Caves -4/Upper Caves -4/Warlord -3/Proximity Caves -3/Research (discovered 1 exit: *Res) History --------- Turn | Location | Event 10 | -11/Scrapyard | Discovered new exit (range 15) 53 | -11/Scrapyard | Entered Materials 173 | -10/Materials | Met 8R-AWN 217 | -10/Materials | Discovered new exit (range 15) 245 | -10/Materials | Entered Mines 247 | -10/Mines | Followed 8R-AWN into the Mines 302 | -10/Mines | Build established: Mutant 349 | -10/Mines | Discovered new exit (range 5) 354 | -10/Mines | Entered Exiles 407 | -10/Exiles | Welcomed by 8R-AWN 452 | -10/Exiles | Met EX-HEX 564 | -10/Exiles | Met EX-DEC 781 | -10/Exiles | Met EX-BIN 809 | -10/Exiles | Aligned with FarCom system 811 | -10/Exiles | Given EX-Vault access code 859 | -10/Exiles | Opened EX-Vault 871 | -10/Exiles | Found PSU Rigger 877 | -10/Exiles | Found Longsword +1 916 | -10/Exiles | Warned to stay clear of 0b10 Research branches 1117 | -10/Exiles | Visited The Gauntlet 1270 | -10/Exiles | Discovered new exit (range 11) 1290 | -10/Exiles | Left Exiles lab with Longsword +1 1290 | -10/Exiles | Entered Mines 1488 | -9/Mines | A weapon hastily lodged in a ceiling crevice suddenly fell to the ground 1610 | -9/Mines | Found a hidden stash of uninstalled traps 1633 | -9/Mines | Learned Materials stockpile data 1897 | -9/Mines | Discovered new exit (range 7) 1955 | -9/Mines | Entered Materials 1955 | -8/Materials | Evolved 4 slots: Propulsion x2, Weapon x2 2501 | -8/Materials | Build established: Skirmisher 2806 | -8/Materials | Build established: Scavenger-Skirmisher 3153 | -8/Materials | Discovered new exit (range 5) 3161 | -8/Materials | Entered Storage 3575 | -8/Storage | Found Prototype Launcher 3575 | -8/Storage | Identified Gui. Missile Launcher 3712 | -8/Storage | Met a pair of Derelict thieves 3874 | -8/Storage | Destroyed 7 combat bots 4145 | -8/Storage | Discovered new exit (range 16) 4186 | -8/Storage | Entered Factory 4186 | -7/Factory | Evolved 2 slots: Utility x2 4187 | -7/Factory | Discovered new exit (range 17) 4404 | -7/Factory | Entered Lower Caves 4472 | -7/Lower Caves | Learned Factory trap positions 4709 | -7/Lower Caves | Build established: Scavenger-Tank 4747 | -7/Lower Caves | Spotted B-75 Beast 4887 | -7/Lower Caves | Destroyed B-75 Beast 4912 | -7/Lower Caves | Lost 4 parts (2n2w) 5015 | -7/Lower Caves | Learned Factory terminal intel 5369 | -7/Lower Caves | Discovered new exit (range 17) 5385 | -7/Lower Caves | Entered another Lower Caves area 5443 | -7/Lower Caves | Discovered new exit (range 3) 5448 | -7/Lower Caves | Learned location of 1 exit from Factory 5562 | -7/Lower Caves | Learned location of Extension (-4) 5976 | -7/Lower Caves | Discovered new exit (range 13) 5992 | -7/Lower Caves | Entered Data Miner 5992 | -7/Data Miner | Discovered new exit (range 6) 6011 | -7/Data Miner | Met Data Miner 6037 | -7/Data Miner | Learned location of Section 7 (-2) 6037 | -7/Data Miner | Acquired the access code to Warlord's prototype stash 6056 | -7/Data Miner | Received God Mode back door access code from Data Miner 6100 | -7/Data Miner | Destroyed Data Miner 6102 | -7/Data Miner | Interfaced with the Data Conduit 6110 | -7/Data Miner | Found Prototype Hackware 6113 | -7/Data Miner | Found Prototype Hackware 6153 | -7/Data Miner | Core integrity fell below 50% 6268 | -7/Data Miner | Lost 11 parts (1p3n2u5w) 6397 | -7/Data Miner | Build established: Scavenger-Mutant 6463 | -7/Data Miner | Found Exp. Thermal Shield 6600 | -7/Data Miner | Entered Proximity Caves 6814 | -6/Proximity Caves | Spotted B-75 Beast 6819 | -6/Proximity Caves | Core integrity fell below 20% 6907 | -6/Proximity Caves | Attracted the attention of an 0b10 checkpoint 6993 | -6/Proximity Caves | Learned Factory stockpile data 7689 | -6/Proximity Caves | Discovered new exit (range 16) 7715 | -6/Proximity Caves | System corruption reached 10% 7727 | -6/Proximity Caves | Entered Factory 7727 | -6/Factory | Accompanied by 1 ally 7727 | -6/Factory | Evolved 2 slots: Utility x2 7728 | -6/Factory | Identified exit to Factory 7729 | -6/Factory | Loaded intel: 130 trap records 7731 | -6/Factory | Loaded intel: 304 machine locations 7732 | -6/Factory | Loaded intel: 20 terminal locations 8523 | -6/Factory | Intercept squad dispatched 8538 | -6/Factory | Spotted Tracker 8546 | -6/Factory | Destroyed Tracker 8565 | -6/Factory | Repaired Lyr. Medium Armor Plating 8618 | -6/Factory | Spotted Combat Programmer 8626 | -6/Factory | Destroyed Combat Programmer 8721 | -6/Factory | Entered another Factory area 8721 | -5/Factory | Evolved 2 slots: Utility x2 8722 | -5/Factory | Loaded intel: 229 machine locations 9001 | -5/Factory | Discovered new exit (range 13) 9070 | -5/Factory | Identified exit to Upper Caves 9196 | -5/Factory | Entered Upper Caves 9304 | -5/Upper Caves | Spotted B-75 Beast 9379 | -5/Upper Caves | Destroyed B-75 Beast 9497 | -5/Upper Caves | Encountered a Warlord checkpoint 9579 | -5/Upper Caves | Discovered new exit (range 14) 9595 | -5/Upper Caves | Identified exit to Upper Caves 9597 | -5/Upper Caves | Entered another Upper Caves area 9715 | -5/Upper Caves | Attracted the attention of an 0b10 checkpoint 9813 | -5/Upper Caves | Attracted the attention of an 0b10 outpost 9884 | -5/Upper Caves | Lost 8 parts (2n4u2w) 9903 | -5/Upper Caves | System corruption reached 10% 9918 | -5/Upper Caves | Core integrity fell below 50% 9943 | -5/Upper Caves | Released all parts (9) 9957 | -5/Upper Caves | Lost 8 parts (7n1u) 10234 | -5/Upper Caves | Build established: Scavenger-Tank 10568 | -5/Upper Caves | Learned location of 1 exit from Factory 10739 | -5/Upper Caves | Discovered new exit (range 10) 10766 | -5/Upper Caves | Entered Zhirov 10766 | -5/Zhirov | Accompanied by 2 allies 10769 | -5/Zhirov | Discovered new exit (range 3) 10905 | -5/Zhirov | Found Alien Artifact 10905 | -5/Zhirov | Identified Integrated Reactor 10905 | -5/Zhirov | Installed Integrated Reactor, increased core energy generation (+10) 10941 | -5/Zhirov | Found Alien Artifact 11059 | -5/Zhirov | Build established: Scavenger-Mutant 11135 | -5/Zhirov | Entered Proximity Caves 11135 | -4/Proximity Caves | Accompanied by 2 allies 11161 | -4/Proximity Caves | Learned Research security intel 11558 | -4/Proximity Caves | Core integrity fell below 20% 11599 | -4/Proximity Caves | Discovered new exit (range 5) 11609 | -4/Proximity Caves | Entered Factory 11609 | -4/Factory | Evolved 2 slots: Propulsion x1, Utility x1 11610 | -4/Factory | Identified exit to Research 11611 | -4/Factory | Loaded intel: 287 machine locations 11651 | -4/Factory | Identified Quantum Router 11652 | -4/Factory | Identified System Mapper 11811 | -4/Factory | Local fabrication network quarantined 11867 | -4/Factory | Fabricated Biometal Leg (x2) 11888 | -4/Factory | First assault squad dispatched 11969 | -4/Factory | Discovered new exit (range 6) 11976 | -4/Factory | Entered Upper Caves 12199 | -4/Upper Caves | Learned 12 Research zone layouts 12307 | -4/Upper Caves | Build established: Hacker-Gunner 12309 | -4/Upper Caves | Discovered new exit (range 6) 12310 | -4/Upper Caves | Learned Research stockpile data 12315 | -4/Upper Caves | Entered another Upper Caves area 12317 | -4/Upper Caves | Attracted the attention of an 0b10 checkpoint 12365 | -4/Upper Caves | Learned location of 1 exit from Research 12544 | -4/Upper Caves | Encountered a Warlord checkpoint 12917 | -4/Upper Caves | Discovered new exit (range 5) 12921 | -4/Upper Caves | Entered Warlord 13093 | -4/Warlord | Met Warlord 13118 | -4/Warlord | Warlord's base attacked by MAIN.C 13165 | -4/Warlord | Found Prototype Energy Cannon 13167 | -4/Warlord | Found Prototype Energy Cannon 13254 | -4/Warlord | Opened Warlord's prototype stash 13260 | -4/Warlord | Found Vortex Chain Reactor 13272 | -4/Warlord | Found Prototype Device 13272 | -4/Warlord | Identified Exp. Cloaking Device 13281 | -4/Warlord | Found Prototype Device 13281 | -4/Warlord | Identified System Purifier 13457 | -4/Warlord | Warlord forces counterattacked 13458 | -4/Warlord | Spotted Executioner 13464 | -4/Warlord | Spotted Striker 13481 | -4/Warlord | Destroyed Striker 13545 | -4/Warlord | Spotted Striker 13546 | -4/Warlord | Spotted Striker 13570 | -4/Warlord | Discovered new exit (range 12) 13582 | -4/Warlord | Entered Proximity Caves 13678 | -3/Proximity Caves | Build established: Hacker-Tank 13788 | -3/Proximity Caves | Spotted B-86 Titan 13843 | -3/Proximity Caves | Identified Vortex Cannon (x2) 13851 | -3/Proximity Caves | Lost 6 parts (2u4w) 14319 | -3/Proximity Caves | Discovered exit to Research (range 4) 14322 | -3/Proximity Caves | Entered Research 14322 | -3/Research | Evolved 2 slots: Utility x2 14323 | -3/Research | Identified exit to Research 14327 | -3/Research | Loaded intel: 111 machine locations 14489 | -3/Research | Fabricated Biometal Leg (x2) 14704 | -3/Research | Spotted Striker 14704 | -3/Research | Identified Transdimensional Reconstructor 14704 | -3/Research | Warped through subspace 14705 | -3/Research | Cargo convoy interrupted 14709 | -3/Research | Spotted B-86 Titan 14730 | -3/Research | Spotted Executioner 14735 | -3/Research | Spotted Executioner 14760 | -3/Research | System corruption reached 10% 14764 | -3/Research | Core integrity fell below 50% 14768 | -3/Research | Released all parts (4) 14784 | -3/Research | Spotted B-86 Titan 14786 | -3/Research | Core integrity fell below 20% 14793 | -3/Research | Destroyed by H-77 Assassin with Coil Gun Last Messages --------------- 14768_ Released 0b10 Decoder Chip [Generic]. 14768_ Released Enh. Biometal Leg. 14769_ Penetrated by Slug. 14769_ Slug penetrates Wall. 14769_ K-01 Serf collects debris. 14769_ P-80 Master resets P-80 Master, system corruption cleaned. 14772_ K-01 Serf collects debris. 14772_ P-80 Master resets Executioner, system corruption cleaned. 14779_ Slammed into A-15 Conveyor. 14781_ A-15 Conveyor calls for reinforcements. 14781_ ALERT: Hostile activity reported, dispatching reinforcements to area. 14781_ A-15 Conveyor sends out distress signal. 14782_ Slammed into G-67 Veteran. 14785_ Knocked back. 14785_ Slug penetrates Fabricator. 14785_ Slug penetrates Wall. 14787_ Slug penetrates Fabricator. 14787_ Critical hit (Burn: +50). 14792_ Penetrated by Slug. Map ----- +----------------------------------------------------+ | ""????? # # #?# | | ""????? # ^# #? | | ""????? + ^ + ! [ #? | | ""????? # ##/########## | | ""????? # ##### # # ???? | | ""?????[ # ####???# # # """"" | | ""????? # ######## # ! #????? """"" | | ??????? # # #?????? """"" | | ???????### + #??????? | | ??????? # # #?????? | | ??????? ############h### #?????? | | ??????? ## #w#?# #?????? ! | | ??????? ### # #?# #????????????# | | ??????? #?# #E#?##########????????######+# | | ??????? #?# #h#??####?????????????# ] | | ???????+#########/### #??# #?????????????# | | ??????? #####k p####BB###########???# | | ????# ????+ Ep BB + | | ????# ????##### ##### | | ????# ????????# g #???# | | ????# ????????# % g""" #???# ""T" | | ????# ???????## """ #???# """"" | | #######???????# """ #???######## | | # ???????# F" #??????##### | | # ???????# """ t #??????# | | # ???????# ""@ ## ##??????# | | # ???????# ## #???????# | | #####+#???????# ## ##??????# | | ????# #???????# # #####??# | | ????# #???????+ # #??# | | ????# #???????# """" ###### #### | | ##### #???????# """" ######### | | # #???????# """" #^ + | | # #???????# """"hh # ####### | | / ?????? ??? # =########+#### | | # ????? ??? ########## | | # ????? ????? #??####### [ | | # ?????? ??????? ?? + | | #######?????????????""" """###??####### | | ????????????????????"""G"""#??????????# """ """ | | ???????????????????????#??????????????# """T""" | | ??????????????????????????????????????############ | | | | | | | | | | | | | | | | | +----------------------------------------------------+ Best States ------------- Heat Dissipation 115 Energy Generation 35 Energy Capacity 500 Matter Stores 500 Matter Capacity 500 Sight Range 20 Terrain Scan Density 10 Cloak Strength 4 Power Amplification 30 Armor Coverage 825 Resistance: KI 30 Resistance: TH 30 Power Shielding 90 Weapon Shielding 66 Melee Speed Boost 20 Phase Shifting 5 Evasion (%) 60 Targeting Accuracy 8 Melee Accuracy 16 Recoil Reduction 3 Particle Charging 15 Kinecelleration 40 Overload Amplification 75 Offensive Hacking 20 Defensive Hacking 25 Item Schematics ----------------- Hcp. Storage Unit | -8/Materials | Hacked Combat Drone Bay | -7/Data Miner | Free Lgt. Regenerative Plating | -7/Data Miner | Free Exp. Terrain Scan Processor | -7/Data Miner | Free Tactical Coordination Suite | -7/Data Miner | Free Assault Drone Bay | -5/Zhirov | Free Exp. Heat Sink | -5/Zhirov | Free Exp. Optical Array | -5/Zhirov | Free Imp. Arc Thrower | -5/Zhirov | Free Biometal Leg | -4/Factory | Hacked Robot Schematics ------------------ S-27 Virus | -7/Data Miner | Free G-50 Soldier | -7/Data Miner | Free H-66 Slayer | -7/Data Miner | Free I-36 Angel | -7/Data Miner | Free I-47 Archangel | -7/Data Miner | Free Fabricated ------------ Biometal Leg | x2 | -4/Factory Biometal Leg | x2 | -3/Research Alien Tech Used ----------------- Integrated Reactor Transdimensional Reconstructor Achievements -------------- Unlimited Data Challenges ------------ None Game ------ Seed ProtonReactiveDisintegrator Manual? 0 Play Time 02:22:20 Cumulative 133.0 hours Start 2021.08.31 @ 11:49:32 End 2021.09.03 @ 22:01:18 Sessions 5 Manual Loads 0 Difficulty Rogue Special Mode None Game No. 82 Rogue 82 Adventurer 0 Explorer 0 Win Type - Total 1 Types 1/0/0/0/0/0/0/0/0 Lore% 52 Gallery% 68 Achievement% 46 Wizard Run 0 Options --------- ASCII 0 Keyboard 1 Movement Numpad Keybinds 0 Fullscreen 1 Font 18/SmallcapsGlow Map View 76x50 Tactical HUD 1 Map Filters NONE Filters NONE Steam 1 RUN: 9d2b6c52-6f90-43e5-a87c-99b197a62734